Cogmind - Beta 17 @@@ ROGUE MODE // 2026.08.02 @ 14:04:04 Player: puppuppit Result: Destroyed by D-53 Grenadier with Mini Grenade Launcher Performance ------------- Evolutions (0) 0 Regions Visited (2) 400 Robots Destroyed (34) 170 Value Destroyed (569) 569 Prototype IDs (4) 80 Alien Tech Used (0) 0 Bonus (0) 0 TOTAL SCORE: 1219 Bonus ------- None Cogmind --------- Core Integrity 0/250 Matter 124/300 Energy 100/100 System Corruption 0% Temperature Cool (0) Movement Core (350) Ox6 Location -10/Mines Parts ------- > --- POWER (1) -------- (None) > --- PROPULSION (2) --- (None) > --- UTILITY (2) ------ Large Storage Unit Hacking Suite > --- WEAPON (2) ------- Light Assault Rifle > --- INVENTORY (15) --- High-capacity Matter Pod (200) High-capacity Matter Pod (200) High-capacity Matter Pod (200) Improved Terrain Scanner Propulsion Shielding Heavy EM Pulse Gun Heavy EM Pulse Gun Particle Gun Grenade Launcher Mini Grenade Launcher Mini Grenade Launcher Mini Grenade Launcher Peak State ------------ > --- POWER ------------ Ion Engine > --- PROPULSION ------- Light Treads Light Treads > --- UTILITY ---------- Large Storage Unit Hacking Suite > --- WEAPON ----------- Light Assault Rifle Minigun > --- INVENTORY -------- Light Treads High-capacity Matter Pod High-capacity Matter Pod High-capacity Matter Pod Improved Terrain Scanner Propulsion Shielding Heavy EM Pulse Gun Heavy EM Pulse Gun Particle Gun Grenade Launcher Mini Grenade Launcher Mini Grenade Launcher Mini Grenade Launcher [Rating: 13] Favorites ----------- Power Ion Engine Engine Ion Engine Propulsion Light Treads Treads Light Treads Utility Hacking Suite Device Improved Terrain Scanner Storage Large Storage Unit Hackware Hacking Suite Weapon Light Assault Rifle Energy Gun Medium Laser Ballistic Gun Light Assault Rifle Launcher Mini Grenade Launcher Build | -11 -10 -10 ------- Run | Yrd Mat Min Slots Evolved . | . . . Power . | . . . Propulsion . | . . . Utility . | . . . Weapon . | . . . Parts Attached 18 | 7 7 4 Power 2 | 1 1 . Engine 2 | 1 1 . Core . | . . . Reactor . | . . . Propulsion 5 | 2 1 2 Treads 5 | 2 1 2 Leg . | . . . Wheel . | . . . Hover . | . . . Flight . | . . . Utility 4 | 2 2 . Device 1 | 1 . . Storage 2 | 1 1 . Processor . | . . . Hackware 1 | . 1 . Protection . | . . . Artifact . | . . . Weapon 7 | 2 3 2 Energy Gun 1 | 1 . . Energy Cannon . | . . . Ballistic Gun 3 | 1 1 1 Ballistic Cannon . | . . . Launcher 3 | . 2 1 Special Weapon . | . . . Impact Weapon . | . . . Slashing Weapon . | . . . Piercing Weapon . | . . . Special Melee Weapon . | . . . Unidentified Prototypes . | . . . Parts Lost 7 | . 1 6 Power 2 | . 1 1 Propulsion 3 | . . 3 Utility . | . . . Weapon 2 | . . 2 Highest Loss Streak 5 | . 1 5 To Critical Strikes . | . . . Average Backups 10 | . 10 13 Power . | . . . Propulsion 1 | . 1 1 Utility 3 | . 4 5 Weapon 4 | . 5 7 Tool/Special . | . . . Unused Backups 11 | . 2 9 Power . | . . . Propulsion . | . . . Utility 7 | . 2 5 Weapon 4 | . . 4 Tool/Special . | . . . Average Slot Usage (%) 96 | . 97 91 Engine 11 | . 11 7 Treads 27 | . 28 26 Device 2 | . 2 . Storage 14 | . 14 14 Hackware 11 | . 11 14 Energy Gun 3 | . 3 . Ballistic Gun 24 | . 24 24 Peak Build Rating 13 | 9 12 13 Average Rating 10 | 7 10 11 On Entrance 6 | . 9 11 Avg Prop Armor Cover (%) . | . . . Naked Turns . | . . . Heaviest Build 29 | 12 27 29 Greatest Support 40 | 40 40 40 Greatest Overweight (x) . | . . . Average Overweight (x) . | . . . Largest Inventory Capacity 15 | 8 15 15 Average Capacity 12 | 7 13 15 Most Carried 14 | 3 14 14 Average Carried 10 | . 10 13 Final Capacity 15 | 8 15 15 Final Carried 14 | 3 14 12 Class Distribution -------------------- 100% | Mutant Dominant Class ---------------- Mutant | -10/Materials Mutant | -10/Mines Resources | -11 -10 -10 ----------- Run | Yrd Mat Min Matter Collected 1209 | 336 873 . Remotely . | . . . Salvage Created 1149 | 191 858 100 Parts 67 | 15 48 4 Haulers Intercepted 2 | . 2 . Recyclers Shooed 4 | . 4 . Parts Field Recycled . | . . . Retrieved Matter . | . . . Parts Self-Destructed . | . . . Prevented . | . . . Parts Restored . | . . . Kills | -11 -10 -10 ------- Run | Yrd Mat Min Combat Hostiles Destroyed 19 | . 10 9 Guns 13 | . 8 5 AOE 6 | . 2 4 Classes Destroyed 10 | 3 5 2 Worker 5 | 2 3 . Builder 1 | . 1 . Tunneler 5 | 4 1 . Hauler 2 | . 2 . Recycler 5 | 1 4 . Operator 1 | . 1 . Watcher 2 | . 2 . Swarmer 3 | . . 3 Grunt 10 | . 10 . Assembled 6 | . . 6 Best Kill Streak 4 | 4 4 3 Combat Bots Only 3 | . 2 3 Max Kills in Single Turn 3 | 1 1 3 Gunslinging . | . . . Exploded 3 | . 1 3 Melee . | . . . Uniques/NPCs Destroyed . | . . . Combat | -11 -10 -10 -------- Run | Yrd Mat Min Hostile Shots Fired 120 | . 74 46 Missed 38 | . 25 13 Hits 82 | . 49 33 Melee 5 | . . 5 Projectile 77 | . 49 28 AOE 3 | . . 3 Damage Taken 1300 | . 656 644 Core 258 | . 149 109 Absorbed by Shields . | . . . Core Remaining (%) 100 | 100 . . Volleys Fired 145 | 18 103 24 Largest 2 | 2 2 2 Hottest 70 | 70 70 55 Shots Fired 289 | 36 206 47 Gun 284 | 36 204 44 Cannon . | . . . Launcher 5 | . 2 3 Special . | . . . Kinetic 230 | 18 168 44 Thermal 54 | 18 36 . Explosive 5 | . 2 3 Electromagnetic . | . . . Robot Hit Streak 12 | 6 12 5 Robot Miss Streak 3 | 3 3 3 Penetration Max . | . . . Secondary Targets 1 | . 1 . Max Gunslinging Chain 1 | . 1 . Shots Hit Robots 188 | 22 139 27 Core Hits 79 | 10 49 20 Critical Kills 2 | 1 1 . Critical Parts Destroyed 1 | 1 . . Critical Strikes 6 | 2 4 . Burn 3 | . 3 . Destroy 3 | 2 1 . Melee Attacks . | . . . Impact . | . . . Slashing . | . . . Piercing . | . . . Sneak Attacks . | . . . Combat Hostiles . | . . . Follow-up Attacks . | . . . Damage Inflicted 2160 | 225 1376 559 Guns 1720 | 225 1229 266 Cannons . | . . . Explosions 440 | . 147 293 Melee . | . . . Ramming . | . . . Kinetic 1274 | 78 930 266 Thermal 446 | 147 299 . Explosive 440 | . 147 293 Electromagnetic . | . . . Impact . | . . . Slashing . | . . . Piercing . | . . . Highest Corruption . | . . . Average Corruption . | . . . Corruption Purged . | . . . Corruption Blocked . | . . . Overload Shots . | . . . Overflow Damage 33 | . . 33 Projectiles . | . . . Explosions 33 | . . 33 Melee . | . . . Knockbacks . | . . . Impact . | . . . Kinetic . | . . . Secondary . | . . . Self-Inflicted Damage 28 | . . 28 Shots 1 | . . 1 Rammed . | . . . Targets Rammed . | . . . Kicked . | . . . Crushed . | . . . Highest Temperature 223 | 110 223 28 Average Temperature 52 | 44 57 7 Received Heat Transfer 458 | . 372 86 Effects 1 | . 1 . Energy Bleed 1 | . 1 . Siege Activations . | . . . Martial Activations . | . . . Shielding Activations . | . . . Robots Disrupted . | . . . Combat Hostiles . | . . . Robots Corrupted . | . . . Combat Hostiles . | . . . Parts Fried . | . . . Impact Corruptions . | . . . Robots Melted . | . . . Combat Hostiles . | . . . Parts Melted 5 | 1 4 . Heat Transferred 1554 | 444 1110 . Parts Sabotaged . | . . . Parts Stolen . | . . . Parts Stripped . | . . . Power Chain Reactions . | . . . Alert | -11 -10 -10 ------- Run | Yrd Mat Min Maximum Alert Level . | . . . Low Security (%) 100 | 100 100 100 Level 1 . | . . . Level 2 . | . . . Level 3 . | . . . Level 4 . | . . . Level 5 . | . . . High Security . | . . . Max Security . | . . . Peak Influence 149 | 15 98 149 Initial 34 | . . 34 Average 33 | 2 29 96 Influence Increases 617 | 35 451 131 Destroy 0b10 Robot/C 260 | . 200 60 Destroy 0b10 Robot/NC 105 | 35 70 . Destroy Leader 78 | . 68 10 Successful Hack 18 | . 18 . Select Force Hacks 60 | . 60 . Disable Machine 30 | . . 30 Destroy Structure 51 | . 20 31 Lose Combat Pursuer 15 | . 15 . Influence Decreases 612 | 35 362 215 Entered New Map 55 | . . 55 Time Decay 497 | 35 362 100 Lost Part 60 | . . 60 Squads Dispatched 5 | . 5 . Investigation 4 | . 4 . Extermination . | . . . Reinforcement 1 | . 1 . Assault . | . . . Garrison . | . . . Intercept . | . . . Searches Triggered . | . . . Construction Impeded . | . . . Haulers Reinforced . | . . . Active Scanning Responses . | . . . Cargo Convoy Interrupts . | . . . Stealth | -11 -10 -10 --------- Run | Yrd Mat Min Distress Signals 2 | . 1 1 Communications Jammed . | . . . Distress Signals . | . . . Times Spotted 35 | . 17 18 Peak Tracking Total 7 | . 3 7 Tactical Retreats 3 | . 1 2 Traps | -11 -10 -10 ------- Run | Yrd Mat Min Traps Triggered 3 | . 1 2 Indirectly . | . . . Trap Hack Attempts . | . . . Triggered . | . . . Disarmed . | . . . Reprogrammed . | . . . Reused . | . . . Traps Extracted . | . . . Installed . | . . . Triggered . | . . . Machines | -11 -10 -10 ---------- Run | Yrd Mat Min Machines Disabled 2 | . . 2 Max in Single Turn 2 | . . 2 Machines Repaired . | . . . Machines Dismantled . | . . . Machines Sabotaged . | . . . Overloaded Fab Kills . | . . . Hacking | -11 -10 -10 --------- Run | Yrd Mat Min Machines Accessed 10 | . 9 1 Terminals 7 | . 7 . Fabricators . | . . . Repair Stations . | . . . Recycling Units 2 | . 2 . Scanalyzers . | . . . Garrison Access . | . . . Total Hacks 36 | . 35 1 Successful 23 | . 22 1 Failed 12 | . 12 . Catastrophic . | . . . Database Lockouts 1 | . 1 . Manual 30 | . 30 . Terminals 31 | . 31 . Fabricators . | . . . Repair Stations . | . . . Recycling Units 4 | . 4 . Scanalyzers . | . . . Garrison Access . | . . . Terminal Hacks 6 | . 5 1 Robot Analysis 2 | . 2 . Prototype ID Bank 2 | . 2 . Open Door 1 | . . 1 Terminal Index 1 | . 1 . Fabricator Hacks . | . . . Repair Station Hacks . | . . . Recycling Unit Hacks . | . . . Scanalyzer . | . . . Garrison Access Hacks . | . . . Unauthorized Hacks 17 | . 17 . Terminals 14 | . 14 . Track 1 | . 1 . Assimilate 1 | . 1 . Botnet 5 | . 5 . Disrupt 2 | . 2 . Skim 5 | . 5 . Fabricators . | . . . Repair Stations . | . . . Recycling Units 3 | . 3 . Recyclers 1 | . 1 . Tunnel 2 | . 2 . Scanalyzers . | . . . Garrison Access . | . . . Data Cores Recovered . | . . . Used . | . . . Hacking Detections 8 | . 8 . Full Trace Events 1 | . 1 . Feedback Events . | . . . Feedback Blocked . | . . . Robot Schematics Acquired . | . . . Robots Built . | . . . Authchips . | . . . Time . | . . . Total Robot Build Rating . | . . . Part Schematics Acquired . | . . . Parts Built . | . . . Authchips . | . . . Time . | . . . Total Part Build Rating . | . . . Part Studies Acquired . | . . . Parts Repaired . | . . . Time . | . . . Parts Recycled . | . . . Recycled Matter . | . . . Retrieved Matter . | . . . Retrieved Components . | . . . Parts Scanalyzed . | . . . Part Schematics Acquired . | . . . Parts Damaged . | . . . Bothacking | -11 -10 -10 ------------ Run | Yrd Mat Min Used RIF Installer . | . . . Robots Hacked . | . . . Non-combat . | . . . Combat . | . . . Robot Hacks Applied . | . . . Relay Couplers Released . | . . . Fabnet Peak Effective % . | . . . Robots Rewired . | . . . Allies Hacked . | . . . Hacks Repelled . | . . . Allies | -11 -10 -10 -------- Run | Yrd Mat Min Total Allies . | . . . Largest Group . | . . . Highest-Rated Group . | . . . Highest-Rated Ally . | . . . Total Orders . | . . . Ally Attacks . | . . . Total Damage . | . . . Kills . | . . . Allies Corrupted . | . . . Allies Melted . | . . . Intel | -11 -10 -10 ------- Run | Yrd Mat Min Active Infowar (turns) 454 | 114 340 . Terrain 454 | 114 340 . Robot Analysis Total 2 | . 2 . Derelict Logs Recovered 1 | . . 1 Drone Launches . | . . . Drone Recoveries . | . . . Exploration | -11 -10 -10 ------------- Run | Yrd Mat Min Turns Passed 2170 | 193 1765 212 Spaces Moved 1082 | 83 913 86 Core 2 | 2 . . Treads 1080 | 81 913 86 Legs . | . . . Wheels . | . . . Hover . | . . . Flight . | . . . Fastest Speed 50 | 50 160 160 Average Speed 159 | 157 160 160 Slowest Speed 160 | 160 160 160 Overloaded Moves . | . . . Propulsion Burnouts . | . . . Robots Hopped . | . . . Potential Cave-ins . | . . . Cave-ins Triggered . | . . . Exploration Rate (%) 41 | 3 96 25 Regions Visited 2 Branch Regions 1 Pre-discovered Areas 3 | . 3 . Known Exits Taken . | . . . Unknown Exits Taken 2 | 1 1 . Scrap Searched . | . . . Spaces Dug . | . . . Terrain Destroyed 54 | . 17 37 Melee . | . . . Projectile . | . . . AOE 54 | . 17 37 Terrain Rammed . | . . . Walls Destroyed . | . . . Machines Disabled . | . . . Actions | -11 -10 -10 --------- Run | Yrd Mat Min Total 1273 | 110 1044 119 Wait . | . . . Move 1080 | 82 912 86 Hop . | . . . Pick Up 17 | 3 14 . Fast Attach 10 | 7 2 1 Attach 3 | . . 3 Detach . | . . . Swap 12 | . 7 5 Drop 6 | . 6 . Fire 145 | 18 103 24 Melee . | . . . Ram . | . . . Kick . | . . . Crush . | . . . Escape Stasis . | . . . Rewire . | . . . Trap . | . . . Miscellaneous . | . . . Route ------- -11/Scrapyard -10/Materials (discovered 5 exits: *Mat x3 / *Min / *Sub) -10/Mines (discovered 4 exits: Mat x2 / Exi / Sub) History --------- Turn | Location | Event 26 | -11/Scrapyard | Discovered new exit (range 15) 194 | -11/Scrapyard | Entered Materials 195 | -10/Materials | Met a group of wandering Federalists 309 | -10/Materials | Build established: Mutant 500 | -10/Materials | Discovered new exit (range 10) 677 | -10/Materials | Central database locked down 888 | -10/Materials | Discovered new exit (range 5) 920 | -10/Materials | Discovered new exit (range 15) 1285 | -10/Materials | Discovered new exit (range 15) 1341 | -10/Materials | Identified exit to Materials 1341 | -10/Materials | Learned location of 1 exit from Materials 1417 | -10/Materials | Learned location of 2 exits from Mines 1460 | -10/Materials | Learned Materials emergency access door positions 1533 | -10/Materials | Core integrity fell below 50% 1959 | -10/Materials | Entered Mines 1961 | -10/Mines | Identified exit to Exiles 1961 | -10/Mines | Identified exit to Subcaves 2050 | -10/Mines | Met a Derelict who couldn't figure out how to use a Trap Extractor 2054 | -10/Mines | Assembled infested the area 2110 | -10/Mines | Core integrity fell below 20% 2171 | -10/Mines | Destroyed by D-53 Grenadier with Mini Grenade Launcher Last Messages --------------- 02086_ as-99765 destroyed. 02093_ as-16052 destroyed. 02100_ as-96862 destroyed. 02112_ as-90868 destroyed. 02122_ as-19548 destroyed. 02134_ Lgt. Treads destroyed. 02144_ as-55671 destroyed. 02148_ Minigun destroyed. 02150_ Lgt. Treads destroyed. 02158_ Destroyed Asb. Hover Unit. 02158_ as-67960 destroyed. 02161_ as-79786 sneak attacks. 02161_ T-07 Excavator destroyed. 02164_ U-05 Engineer destroyed. 02166_ K-01 Serf sends out distress signal. 02167_ K-01 Serf destroyed. 02169_ Lgt. Assault Rifle destroyed. 02169_ as-56300 destroyed. 02169_ as-41104 destroyed. 02171_ Lgt. Treads destroyed. Map ----- +----------------------------------------------------+ | | | | | | | | | | | | | ?????????????????????????????????????????????????? | | ????????????????????????####?????????????????????? | | ????????????????????????# ##???????????????????? | | ????????????????????????# ##??????????????????? | | ?????????????????????????# ###????????????????? | | ?????????????#####????????# ##???????????????? | | ???????????##### #???????## #???????????????? | | ???????????# ##?????## ##??????????????? | | ???????????# ***] #????## ##?????????????? | | ????????# ! ! #????# ##?????######## | | ???????# ! #????# ##????# | | ?? ?????## ###??## ##???# | | ???# ##??# #???## ## ##### | | ???# ## ####### #### | | ##### #?# #??## #### | | % % % % *=#?# #???### #??# | | ???# ##### #?# #?????## ##??# | | ???# ##???# % # ##?????####???# [ | | ???####### ##???### #????????????# | | ????????# #????# !%@ #????????????# | | ???????# ????## ##????????????# | | ???????# #???# ##?????????????# | | ???????# ##???## d ##??????????????# | | ???????# ##?????# % ##???????????????# | | ???????# ##?????? *d#?????????????????###""""" | | ???????# #???????## ???????????????????###### | | ???????## #?????????## ????????????????????????? | | ????????###???????????# ????????????????????????? | | ??????????????????????## ????????????????????????? | | ???????????????????????? ????????????????????????? | | ????????????????????????#????????????????????????? | | ?????????????????????????????????????????????????? | | ?????????????????????????????????????????????????? | | ?????????????????????????????????????????????????? | | ?????????????????????????????????????????????????? | | ?????????????????????????????????????????????????? | | ?????????????????????????????????????????????????? | | ?????????????????????????????????????????????????? | | ?????????????????????????????????????????????????? | | ?????????????????????????????????????????????????? | | ?????????????????????????????????????????????????? | | ?????????????????????????????????????????????????? | | ?????????????????????????????????????????????????? | | ?????????????????????????????????????????????????? | +----------------------------------------------------+ Best States ------------- Heat Dissipation 25 Energy Generation 10 Energy Capacity 250 Matter Stores 300 Matter Capacity 300 Sight Range 16 Terrain Scan Range 16 Terrain Scan Density 10 Evasion (%) 40 Recoil Reduction 2 Offensive Hacking 10 Item Schematics ----------------- None Robot Schematics ------------------ None Fabricated ------------ Nothing Repaired ---------- Nothing Studied --------- None Alien Tech Used ----------------- None Achievements -------------- None Challenges ------------ None Game ------ Seed FieldHardlightArticulator Manual? 0 Play Time 00:11:46 Cumulative 736.0 hours Start 2026.08.02 @ 13:54:25 End 2026.08.02 @ 14:04:04 Sessions 1 Manual Loads 0 Difficulty Rogue Special Mode None Game No. 362 Rogue 362 Adventurer 0 Explorer 0 Win Type - Total 7 Types 3/0/2/1/0/0/0/0/0/1 Lore% 87 Gallery% 76 Achievement% 60 Wizard Run 0 Options --------- Layout 2 ASCII 0 Keyboard 1 Movement Vi Keybinds 0 Fullscreen 1 Font 16/Proggy Map View 55x47 Zoom Use 0% Tactical HUD 1 Map Filters NONE Filters NONE Steam 0 RUN: 146d3912-a0b2-4dfe-8f04-2d0b870c15aa